bitfinex/quotes_SOLUSD_20240914
["timestamp","ask_amount","ask_price","bid_price","bid_amount"]
[1726330929113,120.6198568,138.03,138.02,0.2575463]
[1726330932710,38.1826028,138.03,138.02,0.2575463]
[1726330933811,62.2104668,138.03,138.02,0.2575463]
[1726330934010,62.3359568,138.03,138.02,0.2575463]
[1726330934830,38.5590728,138.03,138.02,0.2575463]
[1726330935431,31.3142728,138.03,138.02,0.2575463]
[1726330935636,30.05176104,138.03,138.02,0.2575463]
[1726330935925,29.80078104,138.03,138.02,0.2575463]
[1726330936132,7.68414611,138.03,138.02,0.2575463]
[1726330936704,7.55865611,138.03,138.02,0.2575463]
[1726330937346,7.68414611,138.03,138.02,0.2575463]
[1726330938043,7.80963611,138.03,138.02,0.2575463]
[1726330938903,7.55865611,138.03,138.02,0.2575463]
[1726330939125,20.95301845,138.06,138.02,20.66596146]
[1726330939638,28.5145197,138.06,138.02,20.66596146]
[1726330941832,0.12549,138.05,138.02,20.66596146]
[1726330942043,27.2543117,138.06,138.03,14.09271516]
[1726330942628,27.2543117,138.06,138.04,14.09271516]
[1726330942827,27.2543117,138.06,138.03,14.09271516]
[1726330943151,27.2543117,138.06,138.02,20.66596146]
[1726330943522,27.2543117,138.06,138.03,14.09271516]
[1726330943736,27.2543117,138.06,138.02,20.66596146]
[1726330943948,0.12549,138.05,138.02,20.66596146]
[1726330944448,0.12549,138.05,138.02,6.5732463]
[1726330944624,0.37647,138.05,138.02,6.5732463]
[1726330944828,21.77,138.04,138.02,0.2575463]
[1726330945027,0.25098,138.03,138.02,0.2575463]
[1726330948241,29.39127,138.03,138.02,0.2575463]
[1726330949835,36.92946045,138.03,138.02,0.2575463]
[1726330959760,60.70634445,138.03,138.02,0.2575463]
[1726330962563,61.96844497,138.03,138.02,0.2575463]
[1726330963538,111.96844497,138.03,138.02,0.2575463]
[1726330964856,7.2469,137.99,137.83,12.93564642]
[1726330965064,0.12549,137.88,137.84,14.09271516]
[1726330965357,12.51507956,137.98,137.83,6.3376]
[1726330965358,0.12549,137.89,137.86,14.09271516]
[1726330965679,0.25098,137.89,137.86,14.09271516]
[1726330965892,0.12549,137.88,137.84,14.09271516]
[1726330966190,21.89549,137.88,137.83,6.3376]
[1726330966486,21.89549,137.88,137.85,0.2141021]
[1726330966487,9.3342626,137.87,137.85,0.2141021]
[1726330966666,9.0832826,137.86,137.85,0.2141021]
[1726330966861,9.2087726,137.86,137.85,0.2141021]
[1726330967065,9.0832826,137.86,137.85,0.2141021]
[1726330967469,0.12549,137.88,137.85,0.2141021]
[1726330967660,0.25098,137.88,137.85,0.2141021]
[1726330968870,30.0,137.86,137.85,0.2141021]
[1726330972384,0.25098,137.88,137.85,0.2141021]
[1726330972913,7.55373835,137.9,137.86,14.09271516]
[1726330973086,128.6345707,137.89,137.86,14.09271516]
[1726330980689,128.6345707,137.89,137.88,14.09271516]
[1726330983618,128.6345707,137.89,137.86,14.09271516]
[1726330986101,128.6345707,137.89,137.85,14.30681726]
[1726330995125,128.6345707,137.89,137.86,14.09271516]
[1726330995423,128.6345707,137.89,137.87,14.09271516]
[1726330998444,128.6345707,137.89,137.86,14.09271516]
[1726331002841,128.6345707,137.89,137.85,14.30681726]
[1726331010925,128.6345707,137.89,137.87,14.09271516]
[1726331011129,128.6345707,137.89,137.88,14.09271516]
[1726331023255,128.6345707,137.89,137.87,14.09271516]
[1726331027159,21.77,137.93,137.87,14.09271516]
[1726331027160,113.6745707,137.92,137.87,14.09271516]
[1726331027342,0.12549,137.91,137.86,0.1949858]
[1726331027547,113.6745707,137.9,137.86,0.1949858]
[1726331029069,0.12549,137.89,137.86,0.1949858]
[1726331029560,0.37647,137.89,137.86,0.1949858]
[1726331029742,113.6745707,137.88,137.86,0.1949858]
[1726331033163,0.37647,137.87,137.86,0.1949858]
[1726331033360,114.0510407,137.87,137.86,0.1949858]
[1726331034258,135.8210407,137.87,137.86,0.1949858]
[1726331035264,114.0510407,137.87,137.86,0.1949858]
[1726331036548,113.8000607,137.87,137.86,0.1949858]
[1726331036751,113.6745707,137.87,137.86,14.28770096]
[1726331045052,99.7945707,137.9,137.86,14.28770096]
[1726331046074,99.7945707,137.9,137.87,14.09271516]
[1726331048677,99.7945707,137.9,137.86,14.28770096]
[1726331053490,99.7945707,137.9,137.86,0.1949858]
[1726331053676,99.7945707,137.9,137.86,14.28770096]
[1726331057797,99.7945707,137.9,137.86,0.1949858]
[1726331057973,99.7945707,137.9,137.89,14.09271516]
[1726331065705,99.7945707,137.9,137.86,0.1949858]
[1726331066015,99.7945707,137.9,137.86,14.28770096]
[1726331066303,99.7945707,137.9,137.87,14.09271516]
[1726331067096,107.35881742,137.9,137.86,0.1949858]
[1726331067400,99.9200607,137.89,137.86,0.1949858]
[1726331068678,99.9200607,137.89,137.86,14.28770096]
[1726331069988,0.12549,137.88,137.86,0.1949858]
[1726331071402,0.25098,137.88,137.86,0.1949858]
[1726331071581,0.12549,137.87,137.86,0.1949858]
[1726331073705,0.37647,137.87,137.86,0.1949858]
[1726331076509,69.534854,137.87,137.86,0.1949858]
[1726331076717,24.027864,137.85,137.82,0.2576769]
[1726331077000,0.12549,137.84,137.82,0.2576769]
[1726331077180,45.837864,137.83,137.82,0.2576769]
[1726331077397,45.963354,137.83,137.82,0.2576769]
[1726331078528,25.41798493,137.83,137.82,0.2576769]
[1726331078818,1.64110093,137.83,137.82,0.2576769]
[1726331083920,54.48328493,137.83,137.82,0.2576769]
[1726331086334,70.80158493,137.83,137.82,0.2576769]
[1726331089308,63.54628493,137.83,137.82,0.2576769]
[1726331090234,23.45110093,137.83,137.82,0.2576769]
[1726331090732,23.20012093,137.83,137.82,0.2576769]
[1726331091033,7.56310397,137.84,137.82,0.2576769]
[1726331092326,0.12549,137.83,137.82,0.2576769]
[1726331100843,0.37647,137.83,137.82,0.2576769]
[1726331101550,53.218654,137.83,137.82,0.2576769]
[1726331104554,75.963354,137.83,137.82,0.2576769]
[1726331105140,45.963354,137.83,137.82,0.2576769]
[1726331106048,53.218654,137.83,137.82,0.2576769]
[1726331109627,45.963354,137.83,137.82,0.2576769]
[1726331111661,47.22686503,137.83,137.82,0.2576769]
[1726331113232,23.44998103,137.83,137.82,0.2576769]
[1726331113639,47.22686503,137.83,137.82,0.2576769]
[1726331118074,54.48216503,137.83,137.82,0.2576769]
[1726331121347,65.7463557,137.83,137.82,0.2576769]
[1726331122556,95.7463557,137.83,137.82,0.2576769]
[1726331122758,115.7463557,137.83,137.82,0.2576769]
[1726331127782,130.8189557,137.83,137.82,0.2576769]
[1726331128253,130.8189557,137.83,137.78,0.2576769]
[1726331128254,29.31838,137.79,137.78,0.2576769]
[1726331128454,53.220754,137.79,137.78,0.2576769]
[1726331128873,73.220754,137.79,137.78,0.2576769]
[1726331129174,80.76379483,137.79,137.78,0.2576769]
[1726331129557,89.21938142,137.79,137.78,0.2576769]
[1726331129755,100.48357209,137.79,137.78,0.2576769]
[1726331129956,130.48357209,137.79,137.78,0.2576769]
[1726331130875,130.48357209,137.79,137.74,0.2576769]
[1726331130876,29.0695,137.75,137.74,0.2576769]
[1726331131062,29.0695,137.75,137.7,0.2576769]
[1726331131063,21.81,137.72,137.7,0.2576769]
[1726331131375,0.12549,137.71,137.7,0.2576769]
[1726331131855,1.39137178,137.71,137.7,0.2576769]
[1726331132060,46.97825578,137.71,137.7,0.2576769]
[1726331132570,54.23985578,137.71,137.7,0.2576769]
[1726331132953,74.49083578,137.71,137.7,0.2576769]
[1726331134148,104.49083578,137.71,137.7,0.2576769]
[1726331136763,80.33748178,137.71,137.7,0.2576769]
[1726331138291,115.62953645,137.71,137.7,0.2576769]
[1726331138466,115.75502645,137.71,137.7,0.2576769]
[1726331139268,123.26991094,137.71,137.7,0.2576769]
[1726331139686,93.26991094,137.71,137.7,0.2576769]
[1726331141488,0.25098,137.68,137.63,20.2578708]
[1726331141679,0.12549,137.67,137.63,20.2578708]
[1726331143575,63.82184094,137.71,137.65,14.09271516]
[1726331143576,8.78076627,137.71,137.65,14.09271516]
[1726331143790,8.78076627,137.71,137.63,20.2578708]
[1726331143791,8.78076627,137.71,137.66,14.09271516]
[1726331145881,8.78076627,137.71,137.64,23.890701]
[1726331146084,8.78076627,137.71,137.66,14.09271516]
[1726331146570,0.12549,137.7,137.66,14.09271516]
[1726331149224,0.25098,137.7,137.64,0.113817]
[1726331149496,7.51308,137.7,137.64,14.20653216]
[1726331149683,7.52514655,137.69,137.64,14.20653216]
[1726331150274,0.12549,137.68,137.64,0.113817]
[1726331150481,45.963354,137.68,137.64,0.113817]
[1726331150798,53.226854,137.68,137.64,0.113817]
[1726331151178,0.25098,137.66,137.64,0.113817]
[1726331151494,0.12549,137.65,137.64,0.113817]
[1726331156671,24.153354,137.65,137.64,0.113817]
[1726331157776,53.228154,137.65,137.64,0.113817]
[1726331159078,24.153354,137.65,137.64,0.113817]
[1726331159697,53.228154,137.65,137.64,0.113817]
[1726331160080,60.75462512,137.65,137.64,0.113817]
[1726331160787,7.52647112,137.65,137.64,0.113817]
[1726331162786,21.81,137.69,137.64,0.113817]
[1726331163087,7.52417449,137.67,137.64,0.113817]
[1726331163308,7.52417449,137.67,137.64,14.20653216]
[1726331163477,7.52417449,137.67,137.65,14.09271516]
[1726331163684,21.81,137.71,137.65,14.09271516]
[1726331163986,7.52298884,137.69,137.65,14.09271516]
[1726331164195,7.52298884,137.69,137.66,14.09271516]
[1726331165000,7.52298884,137.69,137.67,14.09271516]
[1726331165202,1.26622301,137.71,137.67,14.09271516]
[1726331165385,1.26622301,137.71,137.69,14.09271516]
[1726331165584,7.5059799,137.71,137.69,14.09271516]
[1726331165803,0.1493826,137.74,137.69,14.09271516]
[1726331166179,7.50617543,137.73,137.69,14.09271516]
[1726331167006,7.50617543,137.73,137.7,14.09271516]
[1726331168693,7.50617543,137.73,137.71,14.09271516]
[1726331169000,0.2748726,137.74,137.71,14.09271516]
[1726331169200,0.12549,137.73,137.71,14.09271516]
[1726331170106,0.12549,137.73,137.7,14.09271516]
[1726331170407,0.37647,137.73,137.68,6.2346]
[1726331170628,0.37647,137.73,137.68,20.32731516]
[1726331172007,0.25098,137.71,137.65,22.4755]
[1726331172207,0.12549,137.7,137.65,36.56821516]
[1726331173903,0.12549,137.7,137.66,14.09271516]
[1726331177804,0.37647,137.7,137.65,36.56821516]
[1726331179722,7.53978409,137.69,137.65,36.56821516]
[1726331180309,0.25098,137.7,137.67,14.09271516]
[1726331180510,0.37647,137.71,137.67,14.09271516]
[1726331180822,7.9219262,137.71,137.67,14.09271516]
[1726331181623,29.7319262,137.71,137.65,36.56821516]
[1726331186624,29.7319262,137.71,137.66,14.09271516]
[1726331193026,36.9935262,137.71,137.66,14.09271516]
[1726331193208,36.9935262,137.71,137.64,14.20653216]
[1726331195118,36.9935262,137.71,137.65,14.09271516]
[1726331195533,29.7319262,137.71,137.65,14.09271516]
[1726331196214,36.9938262,137.71,137.65,14.09271516]
[1726331197623,29.7319262,137.71,137.65,14.09271516]
[1726331200828,29.7319262,137.71,137.66,14.09271516]
[1726331202546,29.7319262,137.71,137.65,14.09271516]
[1726331223764,29.7319262,137.71,137.62,15.4622]
[1726331223940,22.06098,137.69,137.61,0.284689]
[1726331224144,0.12549,137.66,137.62,14.09271516]
[1726331224357,0.25098,137.66,137.62,14.09271516]
[1726331226661,0.25098,137.66,137.63,14.09271516]
[1726331226850,0.25098,137.66,137.64,14.09271516]
[1726331228791,0.12549,137.66,137.64,14.09271516]
[1726331228972,7.56016293,137.67,137.65,14.09271516]
[1726331229179,21.81,137.69,137.66,14.09271516]
[1726331229489,29.34863538,137.69,137.67,14.09271516]
[1726331230381,0.12549,137.68,137.67,14.09271516]
[1726331232463,0.12549,137.68,137.66,14.09271516]
[1726331236890,7.53863538,137.69,137.66,14.09271516]
[1726331240200,7.53863538,137.69,137.67,14.09271516]
[1726331244301,7.53863538,137.69,137.68,14.09271516]
[1726331244477,7.66412538,137.69,137.68,14.09271516]
[1726331245789,0.12549,137.69,137.68,14.09271516]
[1726331248484,7.55726953,137.7,137.68,14.09271516]
[1726331248699,7.55726953,137.7,137.69,14.09271516]
[1726331248994,7.68275953,137.7,137.69,14.09271516]
[1726331249496,7.55726953,137.7,137.69,14.09271516]
[1726331249706,0.2255946,137.75,137.69,14.09271516]
[1726331249880,7.53851053,137.72,137.7,14.09271516]
[1726331250081,7.53851053,137.72,137.69,14.09271516]
[1726331250386,7.4850946,137.75,137.69,14.09271516]
[1726331250583,7.53585257,137.72,137.69,14.09271516]
[1726331250782,21.81,137.74,137.69,14.09271516]
[1726331250783,0.25098,137.73,137.69,14.09271516]
[1726331250988,0.12549,137.72,137.69,14.09271516]
[1726331251294,7.66593109,137.72,137.69,14.09271516]
[1726331252187,7.66593109,137.72,137.7,14.09271516]
[1726331259507,7.66593109,137.72,137.71,14.09271516]
[1726331259706,0.12549,137.72,137.71,14.09271516]
[1726331259906,0.12549,137.73,137.71,14.09271516]
[1726331260110,7.54141773,137.74,137.72,14.09271516]
[1726331260405,7.54141773,137.74,137.73,14.09271516]
[1726331260608,0.2255946,137.75,137.73,14.09271516]
[1726331260824,0.2255946,137.75,137.74,14.09271516]
[1726331261409,0.6020646,137.75,137.74,14.09271516]
[1726331262609,0.2255946,137.75,137.74,14.09271516]
[1726331270098,0.2255946,137.75,137.67,22.7065]
[1726331270303,0.2255946,137.75,137.74,14.09271516]
[1726331280614,0.3510846,137.75,137.72,14.09271516]
[1726331287027,0.25098,137.74,137.71,14.09271516]
[1726331288822,0.25098,137.74,137.72,14.09271516]
[1726331289834,0.12549,137.74,137.73,14.09271516]
[1726331290132,7.75923371,137.75,137.73,14.09271516]
[1726331290316,7.75923371,137.75,137.74,14.09271516]
[1726331290519,7.88472371,137.75,137.74,14.09271516]
[1726331295411,7.88472371,137.75,137.67,22.7065]
[1726331295412,8.01021371,137.75,137.67,22.7065]
[1726331295614,0.12549,137.74,137.72,14.09271516]
[1726331299457,0.25098,137.74,137.67,22.7065]
[1726331299622,0.12549,137.72,137.67,22.7065]
[1726331299817,0.12549,137.72,137.69,14.09271516]
[1726331300019,0.12549,137.72,137.7,14.09271516]
[1726331300210,7.65996756,137.72,137.7,14.09271516]
[1726331300738,0.12549,137.72,137.7,14.09271516]
[1726331300939,7.65987771,137.72,137.7,14.09271516]
[1726331301716,7.65987771,137.72,137.69,14.09271516]
[1726331302039,29.46987771,137.72,137.67,6.6378]
[1726331302339,0.12549,137.71,137.67,14.09271516]
[1726331302560,0.25098,137.71,137.67,14.09271516]
[1726331307346,0.12549,137.7,137.64,16.3143]
[1726331307554,0.12549,137.69,137.64,16.3143]
[1726331307755,0.25098,137.69,137.65,14.09271516]
[1726331308728,0.25098,137.69,137.64,14.09271516]
[1726331309738,0.12549,137.68,137.64,14.09271516]
[1726331309938,0.25098,137.68,137.64,14.09271516]
[1726331310343,0.25098,137.68,137.61,16.598989]
[1726331310558,0.25098,137.68,137.63,14.09271516]
[1726331311652,0.12549,137.67,137.63,14.09271516]
[1726331311853,0.25098,137.67,137.63,14.09271516]
[1726331313866,0.12549,137.66,137.61,0.284689]
[1726331314138,0.12549,137.65,137.62,14.09271516]
[1726331314361,0.25098,137.65,137.62,14.09271516]
[1726331314563,0.25098,137.65,137.61,14.37740416]
[1726331315140,0.25098,137.65,137.61,0.284689]
[1726331315348,0.12549,137.64,137.61,0.284689]
[1726331315664,0.25098,137.64,137.61,0.284689]
[1726331323071,0.25098,137.64,137.61,14.37740416]
[1726331323448,0.25098,137.64,137.61,0.284689]
[1726331326478,0.12549,137.63,137.61,0.284689]
[1726331326784,0.25098,137.63,137.61,0.284689]
[1726331342967,0.12549,137.63,137.61,0.284689]
[1726331343163,0.37647,137.64,137.61,0.284689]
[1726331344191,7.53808592,137.65,137.63,14.09271516]
[1726331344474,7.53808592,137.65,137.61,14.37740416]
[1726331345371,0.12549,137.64,137.61,14.37740416]
[1726331346272,45.963354,137.64,137.61,0.284689]
[1726331349781,53.228654,137.64,137.61,0.284689]
[1726331350107,0.25098,137.62,137.61,0.284689]
[1726331350270,0.37647,137.62,137.61,0.284689]
[1726331352576,45.963354,137.62,137.61,0.284689]
[1726331359295,53.229654,137.62,137.61,0.284689]
[1726331361501,45.837864,137.62,137.61,0.284689]
[1726331362908,45.963354,137.62,137.61,0.284689]
[1726331364894,53.229654,137.62,137.61,0.284689]
[1726331366202,29.40293065,137.63,137.61,0.284689]
[1726331366613,7.54293065,137.63,137.61,0.284689]
[1726331368197,7.54293065,137.63,137.6,12.87740416]
[1726331368701,0.12549,137.62,137.6,12.87740416]
[1726331371304,0.37647,137.62,137.57,15.4067418]
[1726331371499,0.37647,137.62,137.58,14.09271516]
[1726331371895,0.37647,137.62,137.57,15.4067418]
[1726331372103,0.37647,137.62,137.58,14.09271516]
[1726331372302,0.12549,137.62,137.59,14.09271516]
[1726331372519,0.12549,137.62,137.61,14.09271516]
[1726331372812,0.12549,137.62,137.6,14.09271516]
[1726331373111,0.12549,137.62,137.59,14.09271516]
[1726331374604,0.37647,137.62,137.59,14.09271516]
[1726331375192,0.12549,137.62,137.59,14.09271516]
[1726331378618,0.12549,137.62,137.6,14.09271516]
[1726331388637,0.12549,137.62,137.59,14.09271516]
[1726331389528,0.12549,137.62,137.57,15.4067418]
[1726331389728,0.12549,137.62,137.59,14.09271516]
[1726331394446,0.25098,137.62,137.59,14.09271516]
[1726331398449,0.25098,137.62,137.58,14.09271516]
[1726331401037,22.11098,137.61,137.58,14.09271516]
[1726331401243,0.12549,137.6,137.58,14.09271516]
[1726331402939,0.25098,137.61,137.58,14.09271516]
[1726331403540,0.12549,137.61,137.58,14.09271516]
[1726331404046,0.12549,137.61,137.59,14.09271516]
[1726331406858,7.54293065,137.63,137.6,14.09271516]
[1726331407157,15.8631,137.67,137.62,14.09271516]
[1726331407546,7.53683754,137.66,137.62,14.09271516]
[1726331407748,29.39683754,137.66,137.62,14.09271516]
[1726331408433,29.39683754,137.66,137.63,14.09271516]
[1726331409539,0.12549,137.65,137.63,14.09271516]
[1726331419658,60.78185554,137.64,137.59,6.3988]
[1726331419871,60.78185554,137.64,137.63,14.09271516]
[1726331422365,21.16618531,137.67,137.63,14.09271516]
[1726331422568,21.16618531,137.67,137.64,14.09271516]
[1726331425555,0.25098,137.66,137.64,14.09271516]
[1726331425759,0.25098,137.66,137.61,16.1218]
[1726331425982,0.25098,137.66,137.62,14.09271516]
[1726331427677,0.12549,137.65,137.62,14.09271516]
[1726331427869,0.12549,137.64,137.61,14.09271516]
[1726331428078,0.25098,137.64,137.61,14.09271516]
[1726331431983,0.25098,137.64,137.59,6.3988]
[1726331432189,0.25098,137.64,137.61,14.09271516]
[1726331434390,0.25098,137.64,137.58,16.1218]
[1726331434574,0.25098,137.64,137.61,14.09271516]
[1726331446387,1.26666581,137.66,137.63,14.09271516]
[1726331446582,21.16618531,137.67,137.65,14.09271516]
[1726331446900,0.2551418,137.71,137.66,14.09271516]
[1726331447202,0.2551418,137.71,137.65,6.4478]
[1726331447409,0.2551418,137.71,137.69,14.09271516]
[1726331448973,0.2551418,137.71,137.7,14.09271516]
[1726331449593,0.2551418,137.71,137.65,6.4478]
[1726331449796,0.2551418,137.71,137.69,14.09271516]
[1726331450591,0.2551418,137.71,137.65,6.4478]
[1726331450786,0.2551418,137.71,137.69,14.09271516]
[1726331450787,0.12549,137.7,137.69,14.09271516]
[1726331451296,0.2551418,137.71,137.69,14.09271516]
[1726331460809,0.2551418,137.71,137.7,14.09271516]
[1726331462094,0.3806318,137.71,137.65,6.4478]
[1726331462423,0.25098,137.68,137.64,14.09271516]
[1726331462594,0.12549,137.67,137.64,14.09271516]
[1726331463291,22.11098,137.67,137.64,14.09271516]
[1726331464403,0.25098,137.67,137.64,14.09271516]
[1726331464606,0.12549,137.66,137.63,14.09271516]
[1726331465796,0.25098,137.67,137.64,14.09271516]
[1726331466307,0.12549,137.67,137.65,14.09271516]
[1726331467121,0.37647,137.68,137.65,14.09271516]
[1726331468604,0.37647,137.68,137.64,14.09271516]
[1726331472191,0.25098,137.66,137.62,14.09271516]
[1726331472504,0.12549,137.65,137.62,14.09271516]
[1726331472695,0.12549,137.65,137.61,14.09271516]
[1726331473094,45.762374,137.65,137.61,14.09271516]
[1726331473409,0.25098,137.64,137.61,14.09271516]
[1726331473610,0.12549,137.63,137.61,14.09271516]
[1726331473992,21.86,137.66,137.61,14.09271516]
[1726331474195,0.12549,137.65,137.61,14.09271516]
[1726331474415,0.25098,137.65,137.61,14.09271516]
[1726331474620,0.12549,137.65,137.62,14.09271516]
[1726331474797,0.25098,137.66,137.63,14.09271516]
[1726331481127,0.25098,137.66,137.62,14.09271516]
[1726331483329,0.25098,137.66,137.61,14.09271516]
[1726331485618,0.25098,137.66,137.6,14.09271516]
[1726331487238,0.12549,137.65,137.6,14.09271516]
[1726331488425,0.12549,137.65,137.59,14.09271516]
[1726331489140,0.12549,137.64,137.59,14.09271516]
[1726331489312,0.25098,137.64,137.59,14.09271516]
[1726331490559,0.25098,137.64,137.6,14.09271516]
[1726331490724,0.25098,137.64,137.61,14.09271516]
[1726331492046,0.25098,137.64,137.6,14.09271516]
[1726331492955,0.25098,137.64,137.58,6.2894]
[1726331493127,0.25098,137.64,137.58,20.38211516]
[1726331494746,0.12549,137.62,137.57,0.2551418]
[1726331494949,0.25098,137.62,137.58,14.09271516]
[1726331504760,0.25098,137.62,137.59,14.09271516]
[1726331504974,0.12549,137.62,137.59,14.09271516]
[1726331505181,0.25098,137.64,137.61,14.09271516]
[1726331505480,7.72101717,137.65,137.61,14.09271516]
[1726331506876,0.12549,137.64,137.61,14.09271516]
[1726331508858,0.12549,137.64,137.62,14.09271516]
[1726331509068,0.12549,137.64,137.61,14.09271516]
[1726331509276,0.12549,137.64,137.6,14.09271516]
[1726331510094,0.12549,137.64,137.58,3.91398898]
[1726331510095,0.12549,137.64,137.59,14.09271516]
[1726331510298,0.25098,137.63,137.59,14.09271516]
[1726331510593,0.12549,137.62,137.59,14.09271516]
[1726331511603,21.86,137.65,137.6,14.09271516]
[1726331511794,0.37647,137.64,137.6,14.09271516]
[1726331520218,46.013354,137.64,137.59,14.09271516]
[1726331520398,46.013354,137.64,137.58,14.09271516]
[1726331522678,61.789154,137.64,137.58,14.09271516]
[1726331523002,61.789154,137.64,137.59,14.09271516]
[1726331524395,16.15227,137.64,137.6,14.09271516]
[1726331529996,15.90129,137.64,137.61,14.09271516]
[1726331530792,15.90129,137.64,137.59,3.91618287]
[1726331530990,15.90129,137.64,137.59,14.09271516]
[1726331531395,15.90129,137.64,137.57,0.2551418]
[1726331531710,0.25098,137.63,137.58,14.09271516]
[1726331531915,0.12549,137.62,137.58,14.09271516]
[1726331532607,0.12549,137.62,137.57,14.34785696]
[1726331533692,0.12549,137.62,137.58,14.09271516]
[1726331549795,0.12549,137.62,137.57,0.2551418]
[1726331550118,0.25098,137.61,137.57,0.2551418]
[1726331550300,0.12549,137.6,137.57,0.2551418]
[1726331551704,0.12549,137.6,137.57,14.34785696]
[1726331555626,29.45686349,137.62,137.57,14.34785696]
[1726331555813,0.12549,137.61,137.57,14.34785696]
[1726331557129,7.59686349,137.62,137.59,14.09271516]
[1726331557433,17.03996673,137.64,137.59,14.09271516]
[1726331557607,15.7758,137.64,137.6,14.09271516]
[1726331558634,0.12549,137.63,137.6,14.09271516]
[1726331560707,0.25098,137.65,137.61,14.09271516]
[1726331560903,0.12549,137.64,137.61,14.09271516]
[1726331561833,1.26429432,137.66,137.63,14.09271516]
[1726331562022,29.22568004,137.67,137.63,14.09271516]
[1726331562023,23.21948004,137.67,137.63,14.09271516]
[1726331562408,16.88304983,137.7,137.64,14.09271516]
[1726331562911,46.34141758,137.7,137.64,14.09271516]
[1726331563514,46.34141758,137.7,137.63,14.09271516]
[1726331563927,0.37647,137.69,137.63,14.09271516]
[1726331566021,24.153354,137.69,137.63,14.09271516]
[1726331566227,46.013354,137.69,137.63,14.09271516]
[1726331566436,0.25098,137.66,137.59,6.3759]
[1726331566630,0.12549,137.65,137.61,14.09271516]
[1726331567141,0.12549,137.65,137.62,14.09271516]
[1726331567432,0.12549,137.66,137.62,14.09271516]
[1726331567639,0.37647,137.67,137.62,14.09271516]
[1726331568227,46.013354,137.67,137.62,14.09271516]
[1726331568421,46.013354,137.67,137.61,14.09271516]
[1726331568619,15.6632,137.66,137.57,15.5458418]
[1726331568828,0.37647,137.65,137.6,14.09271516]
[1726331569541,21.86,137.64,137.6,14.09271516]
[1726331569744,0.37647,137.63,137.57,0.2551418]
[1726331570043,0.37647,137.63,137.58,14.09271516]
[1726331570224,0.37647,137.63,137.57,0.2551418]
[1726331570422,0.37647,137.63,137.58,14.09271516]
[1726331575821,0.37647,137.63,137.57,14.34785696]
[1726331575822,46.013354,137.63,137.57,14.34785696]
[1726331577847,46.013354,137.63,137.58,14.09271516]
[1726331578033,22.23647,137.63,137.58,14.09271516]
[1726331580551,0.37647,137.63,137.6,14.09271516]
[1726331580752,0.37647,137.63,137.59,14.09271516]
[1726331580753,0.25098,137.63,137.59,14.09271516]
[1726331580923,0.12549,137.63,137.6,14.09271516]
[1726331581119,15.6632,137.66,137.6,14.09271516]
[1726331581438,45.10827742,137.66,137.6,14.09271516]
[1726331581634,23.24827742,137.66,137.63,14.09271516]
[1726331581839,15.6632,137.66,137.63,14.09271516]
[1726331582952,0.12549,137.65,137.63,14.09271516]
[1726331583640,0.12549,137.65,137.62,14.09271516]
[1726331585244,46.013354,137.65,137.62,14.09271516]
[1726331585456,46.013354,137.65,137.58,16.6283]
[1726331585651,46.013354,137.65,137.58,30.72101516]
[1726331585837,46.013354,137.65,137.59,14.09271516]
[1726331589555,46.013354,137.65,137.58,14.09271516]
[1726331590055,7.59435526,137.64,137.58,14.09271516]
[1726331590229,0.37647,137.63,137.58,14.09271516]
[1726331593543,0.37647,137.63,137.59,14.09271516]
[1726331594664,0.37647,137.63,137.58,3.92198628]
[1726331594825,0.37647,137.63,137.58,18.01470144]
[1726331595031,0.37647,137.63,137.58,14.09271516]
[1726331595443,0.37647,137.63,137.59,14.09271516]
[1726331599662,0.37647,137.63,137.58,3.92710453]
[1726331600026,0.37647,137.63,137.57,14.34785696]
[1726331600637,0.37647,137.63,137.57,18.27465466]
[1726331600847,0.37647,137.63,137.57,14.34785696]
[1726331601040,46.013354,137.63,137.57,18.27465466]
[1726331601961,78.56299149,137.63,137.57,14.34785696]
[1726331602132,78.56299149,137.63,137.57,18.27465466]
[1726331602338,78.56299149,137.63,137.57,14.34785696]
[1726331603345,78.56299149,137.63,137.57,18.27417958]
[1726331603559,32.54963749,137.63,137.59,14.09271516]
[1726331604836,0.12549,137.62,137.59,14.09271516]
[1726331605748,0.12549,137.62,137.58,14.09271516]
[1726331608262,0.12549,137.62,137.58,18.0186752]
[1726331608556,0.12549,137.62,137.58,14.09271516]
[1726331609062,0.12549,137.62,137.58,18.01861972]
[1726331609360,0.25098,137.62,137.58,18.01861972]
[1726331609539,0.25098,137.62,137.58,14.09271516]
[1726331612562,0.25098,137.62,137.57,14.34785696]
[1726331613454,0.25098,137.62,137.58,3.92603224]